fUST/lending_fUST_20251024
["ID","MTS","AMOUNT","RATE_DAILY","PERIOD"]
[392198550,1761252625677,276.33,0.00016285,30]
[392198551,1761252626087,310.87,0.00016866,30]
[392198552,1761252631090,300.0,0.000199,2]
[392198569,1761252631991,-872.9170248,0.00020932,2]
[392198570,1761252632002,-2000.48799593,0.00020932,2]
[392198571,1761252632018,-2126.59497927,0.00020932,2]
[392198572,1761252632028,-241.79,0.0002114,2]
[392198573,1761252632037,-84.68241682,0.00021156,2]
[392198574,1761252632049,-215.31758318,0.00021156,2]
[392198575,1761252632058,-300.0,0.00021156,2]
[392198576,1761252632068,-300.0,0.00021156,2]
[392198577,1761252632078,-1200.0,0.00021156,2]
[392198578,1761252632087,-196.89094059,0.00021158,2]
[392198579,1761252632097,-145.55037191,0.0002126,2]
[392198717,1761252637579,-500.0,0.00021259,2]
[392198719,1761252637589,-217.65116864,0.00021259,2]
[392198721,1761252637599,-261.23267198,0.00021259,2]
[392198724,1761252637610,-238.76732802,0.00021259,2]
[392198726,1761252637619,-271.89407932,0.00021259,2]
[392198728,1761252637628,-365.09534996,0.00021259,2]
[392198730,1761252637638,-289.2432427,0.00021259,2]
[392199413,1761252645940,-210.7567573,0.00021259,2]
[392199415,1761252645954,-349.81050999,0.00021259,2]
[392201289,1761252665701,-5000.0,0.00021046,2]
[392201304,1761252665849,-659.92545446,0.00021153,6]
[392201801,1761252670826,5000.0,0.00021157,2]
[392203870,1761252693554,5000.0,0.000212,9]
[392203923,1761252694396,150.0,0.00019312,2]
[392203988,1761252695309,150.0,0.00020232,2]
[392204416,1761252699660,150.0,0.00012268,30]
[392204451,1761252700062,150.0,0.00012853,30]
[392204496,1761252700486,150.0,0.00013437,30]
[392204539,1761252700885,-151.61,0.00021152,2]
[392204548,1761252700949,150.0,0.00014021,30]
[392204588,1761252701325,150.0,0.00014605,30]
[392204634,1761252701752,150.0,0.00015189,30]
[392205303,1761252716456,5000.0,0.000212,9]
[392205429,1761252717987,-150.18949001,0.00021259,2]
[392205430,1761252718022,-327.52503359,0.00021259,2]
[392205431,1761252718053,-500.0,0.00021259,2]
[392205432,1761252718120,-289.11940033,0.00021259,2]
[392205433,1761252718171,-400.00831529,0.00021259,2]
[392205434,1761252718223,-243.0,0.00021259,2]
[392205435,1761252718277,-243.0,0.00021259,2]
[392205436,1761252718323,-300.0,0.00021259,2]
[392205526,1761252722640,300.0,0.00021259,2]
[392205528,1761252724749,449.99,0.0002126,2]
[392205530,1761252741176,4344.33552156,0.0002126,2]
[392205531,1761252741200,655.66447844,0.0002126,2]
[392205534,1761252758117,1200.0,0.00021259,2]
[392205535,1761252765209,5000.0,0.0002126,2]
[392205536,1761252769042,150.0,0.00019323,2]
[392205537,1761252769464,150.0,0.00020243,2]
[392205538,1761252769856,150.0,0.00021163,2]
[392205539,1761252773578,150.0,0.00012211,30]
[392205540,1761252774017,150.0,0.00012793,30]
[392205541,1761252774450,150.0,0.00013374,30]
[392205542,1761252782939,300.0,0.00021259,2]
[392205543,1761252787536,1344.28610244,0.0002126,2]
[392205544,1761252842057,150.0,0.00019316,2]
[392205545,1761252842237,300.0,0.00021259,2]
[392205546,1761252842517,150.0,0.00020235,2]
[392205547,1761252842952,0.05941912,0.00021155,2]
[392205548,1761252842976,149.94058088,0.00021155,2]
[392205549,1761252874901,-5.44962809,0.0002126,2]
[392205550,1761252874930,-204.22950362,0.0002126,2]
[392205551,1761252874960,-1000.0,0.0002126,2]
[392205552,1761252874991,-151.0,0.0002126,2]
[392205553,1761252875020,-1000.0,0.0002126,2]
[392205554,1761252875050,-151.0,0.0002126,2]
[392205555,1761252875081,-888.15731838,0.0002126,2]
[392205556,1761252875121,-151.0,0.0002126,2]
[392205557,1761252875149,-151.0,0.0002126,2]
[392205558,1761252875177,-151.0,0.0002126,2]
[392205559,1761252875206,-250.0,0.0002126,2]
[392205560,1761252875334,-151.0,0.0002126,2]
[392205561,1761252875364,-250.0,0.0002126,2]
[392205562,1761252875395,-151.0,0.0002126,2]
[392205563,1761252875425,-250.0,0.0002126,2]
[392205564,1761252875455,-39.33709982,0.0002126,2]
[392205565,1761252875591,-111.66290018,0.0002126,2]
[392205566,1761252875620,-250.0,0.0002126,2]
[392205567,1761252875650,-151.0,0.0002126,2]
[392205568,1761252875680,-320.66427885,0.0002126,2]
[392205569,1761252875709,-151.0,0.0002126,2]
[392205570,1761252875737,-189.72641855,0.0002126,2]
[392205571,1761252875766,-151.0,0.0002126,2]
[392205572,1761252875796,-151.7608067,0.0002126,2]
[392205573,1761252875824,-299.77827851,0.0002126,2]
[392205574,1761252875852,-394.07308737,0.00021261,2]
[392205575,1761252875880,-500.0,0.00021268,2]
[392205576,1761252875908,-500.0,0.00021268,2]
[392205577,1761252875939,-241.64414156,0.00021268,2]
[392205578,1761252875968,-167.0232308,0.0002127,2]
[392205579,1761252875996,-500.0,0.0002127,2]
[392205580,1761252876025,-458.84918825,0.00021272,2]
[392205581,1761252876052,-237.33126732,0.00021272,2]
[392205582,1761252876082,-203.05833707,0.00021272,2]
[392205583,1761252883914,-1289.08,0.00021263,10]
[392205584,1761252883942,-500.0,0.00021272,2]
[392205585,1761252883972,-500.0,0.00021272,2]
[392205586,1761252893275,1643.66,0.00021263,10]
[392205587,1761252895475,781.69,0.00021263,3]
[392205588,1761252898414,500.95754743,0.00021173,2]
[392205589,1761252902519,300.0,0.00021272,2]
[392205590,1761252903715,801.0,0.00021272,2]
[392205591,1761252905159,1394.54245257,0.00021263,10]
[392205592,1761252905187,554.39754743,0.00021263,10]
[392205593,1761252911919,150.0,0.0001932,2]
[392205594,1761252912364,150.0,0.0002024,2]
[392205595,1761252912766,150.0,0.0002116,2]
[392205596,1761252916358,1624.12,0.00021263,10]
[392205597,1761252927633,1353.43,0.00021263,10]
[392205598,1761252938819,1127.86,0.00021263,10]
[392205599,1761252950366,939.88,0.00021263,10]
[392205601,1761252974706,-1110.15,0.00021263,10]
[392205602,1761252974737,-535.3299245,0.00021272,2]
[392205603,1761252974766,-300.0,0.00021272,2]
[392205604,1761252980852,150.0,0.00019294,2]
[392205605,1761252981296,150.0,0.00020213,2]
[392205606,1761252981726,150.0,0.00021131,2]
[392205607,1761252985433,925.13,0.00021263,10]
[392205608,1761252996911,770.94,0.00021263,10]
[392205609,1761253008674,642.45,0.00021263,10]
[392205610,1761253020454,535.38,0.00021263,10]
[392205611,1761253022311,300.0,0.00021272,2]
[392205612,1761253031971,446.15,0.00021263,10]
[392205613,1761253038021,2039.000151,0.00021173,2]
[392205614,1761253038044,10000.01,0.00021173,2]
[392205615,1761253038067,10000.01,0.00021173,2]
[392205616,1761253038089,10000.01,0.00021173,2]
[392205618,1761253043240,598.81,0.00021163,10]
[392205620,1761253050080,-150.0,0.00019298,2]
[392205621,1761253050113,-150.0,0.00020217,2]
[392205622,1761253050146,-150.0,0.00021136,2]
[392205623,1761253053253,-10000.01,0.00021173,2]
[392205624,1761253053364,-10000.01,0.00021173,2]
[392205625,1761253053596,598.81,0.00021163,10]
[392205626,1761253056301,-10000.01,0.00021173,2]
[392205627,1761253056544,-10000.01,0.00021173,2]
[392205628,1761253059123,-10000.01,0.00021173,2]
[392205629,1761253059331,-10000.01,0.00021173,2]
[392205630,1761253062171,-10000.01,0.00021173,2]
[392205631,1761253064817,399.21,0.00021163,10]
[392205632,1761253069291,5000.0,0.000212,9]
[392205633,1761253075187,332.67,0.00021163,10]
[392205634,1761253077834,2355.22622577,0.000212,9]
[392205635,1761253080113,169.3416505,0.00010127,2]
[392205647,1761253086998,277.23,0.00021163,10]
[392205650,1761253093582,5000.0,0.000212,9]
[392205652,1761253098968,231.02,0.00021163,10]
[392205653,1761253100554,-175.34672668,0.00021073,2]
[392205654,1761253100589,-300.0,0.00021172,2]
[392205655,1761253100647,-9049.31654664,0.00021173,2]
[392205656,1761253100880,-10000.01,0.00021173,2]
[392205658,1761253102263,-10000.01,0.00021173,2]
[392205659,1761253102406,-10000.01,0.00021173,2]
[392205660,1761253102523,-10000.01,0.00021173,2]
[392205661,1761253102666,-10000.01,0.00021173,2]
[392205662,1761253102796,-10000.01,0.00021173,2]
[392205663,1761253102924,-10000.01,0.00021173,2]
[392205664,1761253103051,-10000.01,0.00021173,2]
[392205666,1761253109477,-10000.01,0.00021173,2]
[392205667,1761253109607,-10000.01,0.00021173,2]
[392205668,1761253109752,-10000.01,0.00021173,2]
[392205669,1761253109870,-10000.01,0.00021173,2]
[392205670,1761253110193,-10000.01,0.00021173,2]
[392205671,1761253110208,-10000.01,0.00021173,2]
[392205672,1761253110234,-10000.01,0.00021173,2]
[392205673,1761253110386,-10000.01,0.00021173,2]
[392205674,1761253110496,-10000.01,0.00021173,2]
[392205675,1761253110770,409.9,0.00021163,10]
[392205676,1761253116340,5000.0,0.000212,9]
[392205677,1761253118234,150.0,0.00012731,30]
[392205678,1761253118681,150.0,0.00013338,30]
[392205679,1761253119092,150.0,0.00013944,30]
[392205680,1761253119490,168.94,0.0001455,30]
[392205681,1761253119893,211.17,0.00015156,30]
[392205682,1761253120309,253.41,0.00015763,30]
[392205685,1761253120723,295.64,0.00016369,30]
[392205686,1761253121153,337.88,0.00016975,30]
[392205687,1761253121571,380.11,0.00017581,30]
[392205688,1761253121984,174.32183031,0.00018188,30]
[392205692,1761253125222,5000.0,0.000212,9]
[392205702,1761253160799,-196.0,0.00016,2]
[392205703,1761253160821,-196.0,0.00016131,2]
[392205704,1761253160843,-8.01049661,0.00016263,2]
[392205705,1761253163414,-187.98950339,0.00016263,2]
[392205706,1761253163441,-95.62700312,0.00016394,2]
[392205707,1761253165978,-100.37299688,0.00016394,2]
[392205708,1761253166009,-138.87542615,0.00016525,2]
[392205709,1761253167680,-57.12457385,0.00016525,2]
[392205710,1761253167706,-196.0,0.00016656,2]
[392205711,1761253167734,-107.84810104,0.00016788,2]
[392205712,1761253183316,-88.15189896,0.00016788,2]
[392205713,1761253183340,-88.3199324,0.00016919,2]
[392205714,1761253187621,-107.6800676,0.00016919,2]
[392205715,1761253187644,-169.2409197,0.0001705,2]
[392205716,1761253190848,-26.7590803,0.0001705,2]
[392205717,1761253190872,-196.0,0.00017181,2]
[392205718,1761253190893,-77.2409197,0.00017313,2]
[392205719,1761253192427,-118.7590803,0.00017313,2]
[392205720,1761253192554,-189.41647552,0.00017444,2]
[392205721,1761253194211,150.0,0.00011965,30]
[392205722,1761253195165,150.0,0.00012535,30]
[392205723,1761253195611,157.68,0.00013105,30]
[392205724,1761253196033,210.25,0.00013675,30]
[392205725,1761253196329,-6.58352448,0.00017444,2]
[392205726,1761253196364,-161.91450661,0.00017575,2]
[392205727,1761253196438,262.81,0.00014244,30]
[392205728,1761253196836,315.37,0.00014814,30]
[392205729,1761253197106,-34.08549339,0.00017575,2]
[392205730,1761253197140,-196.0,0.00017706,2]
[392205731,1761253197173,-196.0,0.00017838,2]
[392205732,1761253197204,-196.0,0.00017969,2]
[392205733,1761253197235,-305.54643962,0.000181,2]
[392205734,1761253197265,-150.0,0.00018978,2]
[392205735,1761253197299,-150.0,0.0001917,2]
[392205736,1761253197334,-150.0,0.00019364,2]
[392205737,1761253197370,-245.29,0.00020259,2]
[392205738,1761253197401,-265.1518408,0.00020836,2]
[392205739,1761253197437,-251.20851519,0.00021073,2]
[392205740,1761253197466,-237.53978567,0.00021172,2]
[392205741,1761253197496,-455.27069944,0.00021172,2]
[392205742,1761253197526,-500.0,0.00021172,2]
[392205743,1761253197555,-500.0,0.00021172,2]
[392205744,1761253197585,-500.0,0.00021172,2]
[392205745,1761253197616,-519.1,0.00021172,2]
[392205746,1761253197645,-4.61955027,0.00021172,2]
[392205747,1761253197749,367.93,0.00015384,30]
[392205748,1761253197823,-288.38535124,0.00021172,2]
[392205749,1761253197853,-500.0,0.00021172,2]
[392205750,1761253197882,-157.21288266,0.00021172,2]
[392205751,1761253197910,-300.0,0.00021172,2]
[392205752,1761253198095,420.49,0.00015954,30]
[392205753,1761253198261,473.05,0.00016524,30]
[392205754,1761253198481,355.93527174,0.00017093,30]
[392205755,1761253202064,300.0,0.00021171,2]
[392205756,1761253203683,1200.0,0.00021172,2]
[392205757,1761253206583,5000.0,0.00021173,2]
[392205758,1761253214419,1008.8135322,0.00021173,2]
[392205759,1761253214446,3991.1864678,0.00021173,2]
[392205760,1761253214952,178.86,0.00021163,2]
[392205761,1761253220266,500.0,0.00021172,2]
[392205762,1761253220295,500.0,0.00021172,2]
[392205763,1761253220321,500.0,0.00021172,2]
[392205764,1761253220421,500.0,0.00021172,2]
[392205765,1761253220572,500.0,0.00021172,2]
[392205766,1761253220706,500.0,0.00021172,2]
[392205767,1761253220738,500.0,0.00021172,2]
[392205768,1761253220883,500.0,0.00021172,2]
[392205769,1761253220915,480.9,0.00021172,2]
[392205770,1761253221046,176.5723385,0.00021172,2]
[392205771,1761253221255,486.29558864,0.00021172,2]
[392205772,1761253222753,686.19560506,0.00021066,6]
[392205773,1761253222776,26.62433626,0.00021066,6]
[392205774,1761253225002,194.47774016,0.00021073,2]
[392205775,1761253229708,5000.0,0.00021173,2]
[392205776,1761253232342,500.0,0.00021172,2]
[392205777,1761253232405,500.0,0.00021172,2]
[392205778,1761253232467,500.0,0.00021172,2]
[392205779,1761253232508,238.18266628,0.00021172,2]
[392205780,1761253235976,500.0,0.00021172,2]
[392205781,1761253236006,500.0,0.00021172,2]
[392205782,1761253236040,500.0,0.00021172,2]
[392205783,1761253236069,500.0,0.00021172,2]
[392205784,1761253236105,500.0,0.00021172,2]
[392205785,1761253236245,500.0,0.00021172,2]
[392205786,1761253236276,40.7252573,0.00021172,2]
[392205787,1761253236303,118.66927085,0.00021172,2]
[392205788,1761253236334,300.0,0.00021172,2]
[392205789,1761253237120,300.0,0.00021172,2]
[392205790,1761253237563,4329.01792604,0.00021173,2]
[392205791,1761253250776,500.0,0.00021172,2]
[392205792,1761253250806,500.0,0.00021172,2]
[392205793,1761253250834,500.0,0.00021172,2]
[392205794,1761253250864,500.0,0.00021172,2]
[392205795,1761253250895,500.0,0.00021172,2]
[392205796,1761253250931,500.0,0.00021172,2]
[392205797,1761253250963,498.41513966,0.00021172,2]
[392205798,1761253250992,500.0,0.00021172,2]
[392205799,1761253251056,390.80181705,0.00021172,2]
[392205801,1761253253298,5000.0,0.000212,9]
[392205802,1761253262283,300.0,0.00021172,2]
[392205804,1761253265669,150.0,0.00019301,2]
[392205805,1761253266119,113.1058464,0.0002022,2]
[392205806,1761253266148,49.2241536,0.0002022,2]
[392205807,1761253266555,243.5,0.00021139,2]
[392205808,1761253269854,150.0,0.00012206,30]
[392205809,1761253270265,150.0,0.00012787,30]
[392205812,1761253270661,150.0,0.00013368,30]
[392205813,1761253271072,150.0,0.0001395,30]
[392205814,1761253271480,173.93,0.00014531,30]
[392205815,1761253271880,208.72,0.00015112,30]
[392205816,1761253272272,243.5,0.00015693,30]
[392205817,1761253272693,278.29,0.00016275,30]
[392205818,1761253273270,313.07,0.00016856,30]
[392205819,1761253273921,1849.17279927,0.00018652,2]
[392205820,1761253274220,1849.17279927,0.00018995,2]
[392205821,1761253274519,1849.17279927,0.00019241,2]
[392205822,1761253274797,1849.17279927,0.00019595,2]
[392205823,1761253275123,1849.17279927,0.00019785,2]
[392205824,1761253275419,461.42185005,0.00020227,2]
[392205825,1761253275443,1387.75094922,0.00020227,2]
[392205826,1761253275675,5000.0,0.000212,9]
[392205827,1761253275707,1849.17279927,0.00020335,2]
[392205828,1761253276016,1849.17279927,0.00020629,2]
[392205829,1761253276322,1849.17279927,0.00020872,2]
[392205830,1761253287220,500.0,0.00021172,2]
[392205831,1761253287290,500.0,0.00021172,2]
[392205832,1761253287346,500.0,0.00021172,2]
[392205833,1761253297515,545.70760283,0.00021172,2]
[392205834,1761253297689,209.61972843,0.00021172,2]
[392205835,1761253298564,5000.0,0.000212,9]
[392205836,1761253304689,543.76,0.00021163,10]
[392205837,1761253305020,500.0,0.00021172,2]
[392205838,1761253305069,309.41332171,0.00021172,2]
[392205839,1761253305092,287.21845171,0.00021172,2]
[392205840,1761253315731,453.13,0.00021163,10]
[392205841,1761253317346,567.10106602,0.00021172,2]
[392205842,1761253321927,5000.0,0.000212,9]
[392205843,1761253322200,300.0,0.00021172,2]
[392205844,1761253331974,167.47234346,0.00021073,2]
[392205845,1761253339051,501.06,0.0002119,10]
[392205846,1761253340872,150.0,0.00019289,2]
[392205847,1761253341271,178.48,0.00020207,2]
[392205848,1761253341676,267.71,0.00021126,2]
[392205851,1761253344773,4050.00576273,0.000212,9]
[392205852,1761253344888,150.0,0.00011925,30]
[392205853,1761253345329,150.0,0.00012493,30]
[392205854,1761253345724,150.0,0.0001306,30]
[392205855,1761253346193,152.98,0.00013628,30]
[392205856,1761253346609,191.22,0.00014196,30]
[392205857,1761253347018,229.47,0.00014764,30]
[392205858,1761253347602,267.71,0.00015332,30]
[392205859,1761253348000,305.96,0.000159,30]
[392205860,1761253348407,344.2,0.00016468,30]
[392205861,1761253350736,417.55,0.0002119,10]
[392205862,1761253357680,1200.0,0.00021172,2]
[392205863,1761253362873,347.96,0.0002119,10]
[392205864,1761253374287,289.97,0.0002119,10]
[392205865,1761253382545,300.0,0.00021172,2]
[392205866,1761253384646,304.57,0.0002119,10]
[392205867,1761253391328,537.6845,0.00021173,2]
[392205868,1761253395000,253.81,0.00021163,10]
[392205869,1761253406678,211.51,0.00021163,10]
[392205870,1761253416184,150.0,0.00019348,2]
[392205871,1761253416597,169.88,0.0002027,2]
[392205872,1761253418064,176.26,0.00021163,10]
[392205873,1761253420293,150.0,0.00012462,30]
[392205874,1761253420684,150.0,0.00013055,30]
[392205875,1761253421097,150.0,0.00013649,30]
[392205876,1761253421491,150.0,0.00014242,30]
[392205877,1761253421881,182.01,0.00014836,30]
[392205878,1761253422298,218.42,0.00015429,30]
[392205879,1761253422699,254.82,0.00016022,30]
[392205880,1761253423106,291.22,0.00016616,30]
[392205881,1761253423504,327.62,0.00017209,30]
[392205882,1761253428529,881.31,0.00021163,10]
[392205883,1761253442256,300.0,0.00021172,2]
[392205893,1761253491020,150.0,0.00019335,2]
[392205894,1761253491584,150.0,0.00020256,2]
[392205895,1761253495334,54.26238608,0.00012415,30]
[392205896,1761253495363,95.73761392,0.00012415,30]
[392205897,1761253495726,150.0,0.00013007,30]
[392205899,1761253496677,150.0,0.00013598,30]
[392205900,1761253497120,150.0,0.00014189,30]
[392205901,1761253498084,150.0,0.0001478,30]
[392205902,1761253498537,150.0,0.00015371,30]
[392205903,1761253499001,171.05,0.00015963,30]
[392205904,1761253502000,300.0,0.00021172,2]
[392205906,1761253503805,1200.0,0.00021172,2]
[392205913,1761253513993,1000.0,0.00021173,2]
[392205914,1761253514544,1607.67602489,0.00021047,2]
[392205915,1761253514570,233.04488615,0.00021047,2]
[392205916,1761253514599,1000.0,0.00021173,2]
[392205917,1761253515195,1000.0,0.00021173,2]
[392205918,1761253515855,1008.6548895,0.00021173,2]
[392205931,1761253562218,300.0,0.00021172,2]
[392205932,1761253566881,150.0,0.00019279,2]
[392205933,1761253567272,150.0,0.00020197,2]
[392205934,1761253567677,182.83,0.00021115,2]
[392205936,1761253571150,150.0,0.00012658,30]
[392205937,1761253571552,150.0,0.00013261,30]
[392205938,1761253571992,150.0,0.00013863,30]
[392205939,1761253572380,150.0,0.00014466,30]
[392205941,1761253572780,150.0,0.00015069,30]
[392205942,1761253573212,156.71,0.00015672,30]
[392205943,1761253573732,182.83,0.00016274,30]
[392205944,1761253574177,208.95,0.00016877,30]
[392205951,1761253622514,300.0,0.00021172,2]
[392205957,1761253635169,1840.720911,0.00020889,2]
[392205958,1761253641571,150.0,0.00019279,2]
[392205959,1761253641869,150.0,0.00020198,2]
[392205960,1761253642251,150.0,0.00021116,2]
[392205962,1761253645538,150.0,0.00012186,30]
[392205963,1761253645942,150.0,0.00012766,30]
[392205964,1761253646852,150.0,0.00013347,30]
[392205965,1761253647289,150.0,0.00013927,30]
[392205969,1761253657621,320.0,0.00021172,2]
[392205971,1761253680921,184.43,0.00015135,2]
[392205972,1761253681198,184.43,0.00015135,2]
[392205973,1761253682523,300.0,0.00021172,2]
[392205976,1761253715129,150.0,0.00019273,2]
[392205977,1761253715524,150.0,0.00020191,2]
[392205978,1761253715942,158.59,0.00021109,2]
[392205979,1761253719137,38.81931335,0.00012286,30]
[392205980,1761253719166,111.18068665,0.00012286,30]
[392205981,1761253719555,150.0,0.00012871,30]
[392205982,1761253719965,150.0,0.00013457,30]
[392205983,1761253720907,150.0,0.00014042,30]
[392205984,1761253721339,150.0,0.00014627,30]
[392205985,1761253721747,150.0,0.00015212,30]
[392205986,1761253722170,158.59,0.00015797,30]
[392205987,1761253742376,300.0,0.00021172,2]
[392206106,1761253789968,150.0,0.00019284,2]
[392206107,1761253790377,150.0,0.00020202,2]
[392206108,1761253791321,150.0,0.00021121,2]
[392206109,1761253794699,150.0,0.00012289,30]
[392206110,1761253795188,150.0,0.00012874,30]
[392206111,1761253795586,150.0,0.00013459,30]
[392206112,1761253796023,150.0,0.00014044,30]
[392206113,1761253796419,150.0,0.0001463,30]
[392206114,1761253802033,300.0,0.00021172,2]
[392206115,1761253802062,217.0,0.00021172,2]
[392206163,1761253831798,-88911.41330236,0.00021173,2]
[392206165,1761253831808,-205.60680494,0.00021173,2]
[392206167,1761253831817,-163.82552232,0.00021173,2]
[392206169,1761253831826,-500.0,0.00021173,2]
[392206171,1761253831836,-500.0,0.00021173,2]
[392206173,1761253831846,-500.0,0.00021173,2]
[392206174,1761253831855,-500.0,0.00021173,2]
[392206176,1761253831865,-398.11306327,0.00021173,2]
[392206178,1761253831874,-200.0,0.00021173,2]
[392206180,1761253831883,-1000.0,0.00021173,2]
[392206182,1761253831892,-1000.0,0.00021173,2]
[392206184,1761253831901,-1000.0,0.00021173,2]
[392206186,1761253831911,-1000.0,0.00021173,2]
[392206188,1761253831920,-187.901296,0.00021173,2]
[392206190,1761253831929,-800.0,0.00021181,2]
[392206192,1761253831938,-205.60680494,0.000212,2]
[392206195,1761253831947,-500.0,0.00021268,2]
[392206198,1761253831956,-500.0,0.0002127,2]
[392206200,1761253831966,-500.0,0.00021272,2]
[392206203,1761253831975,-500.0,0.00021272,2]
[392206206,1761253831984,-500.0,0.00021272,2]
[392206209,1761253831994,-500.0,0.00021272,2]
[392206212,1761253832003,-500.0,0.00021272,2]
[392206214,1761253832013,-500.0,0.00021272,2]
[392206216,1761253832022,-500.0,0.00021272,2]
[392206218,1761253832031,-500.0,0.00021272,2]
[392206220,1761253832041,-500.0,0.00021272,2]
[392206222,1761253832051,-500.0,0.00021272,2]
[392206224,1761253832060,-500.0,0.00021272,2]
[392206226,1761253832069,-500.0,0.00021272,2]
[392206227,1761253832078,-1840.7209111,0.00021388,2]
[392206229,1761253832087,-175.364,0.00021437,2]
[392206231,1761253832096,-354.37996917,0.00021473,2]
[392206233,1761253832106,-405.00567905,0.00021473,2]
[392206235,1761253832115,-212.52905478,0.00021473,2]
[392206237,1761253832124,-632.82137352,0.00021473,2]
[392206239,1761253832133,-382.1697463,0.00021473,2]
[392206241,1761253832142,-289.28879921,0.00021473,2]
[392206243,1761253832151,-330.28515475,0.00021473,2]
[392206245,1761253832160,-247.82257833,0.00021473,2]
[392206247,1761253832169,-446.08064099,0.00021473,2]
[392206249,1761253832178,-793.03225065,0.00021473,2]
[392206251,1761253832188,-238.14069811,0.00021473,2]
[392206253,1761253832197,-1239.11289165,0.00021473,2]
[392206255,1761253832206,-272.16079784,0.00021473,2]
[392206257,1761253832215,-425.25124663,0.00021473,2]
[392206259,1761253832225,-352.61376363,0.00021473,2]
[392206261,1761253832234,-300.0,0.00021578,20]
[392206263,1761253832245,-300.0,0.00021578,20]
[392206264,1761253832254,-300.0,0.00021578,20]
[392206265,1761253832263,-300.0,0.00021578,20]
[392206266,1761253832272,-300.0,0.00021578,20]
[392206267,1761253832281,-300.0,0.00021578,20]
[392206268,1761253832289,-300.0,0.00021578,20]
[392206269,1761253832299,-300.0,0.00021578,20]
[392206270,1761253832307,-300.0,0.00021578,20]
[392206271,1761253832316,-300.0,0.00021578,20]
[392206272,1761253832325,-300.0,0.00021578,20]
[392206273,1761253832334,-300.0,0.00021578,20]
[392206274,1761253832343,-300.0,0.00021578,20]
[392206275,1761253832352,-300.0,0.00021578,20]
[392206276,1761253832361,-300.0,0.00021578,20]
[392206277,1761253832370,-509.81408097,0.00021578,20]
[392206278,1761253832379,-600.0,0.00021683,20]
[392206279,1761253832388,-500.0,0.00021721,2]
[392206280,1761253832397,-1000.0,0.00021721,2]
[392206281,1761253832405,-160.0,0.00021799,2]
[392206282,1761253832414,-329.08814467,0.00021865,2]
[392206283,1761253832423,-494.74277936,0.00021931,5]
[392206284,1761253832432,-447.83,0.0002199,3]
[392206285,1761253832441,-223.91,0.0002199,3]
[392206286,1761253832449,-671.77,0.0002199,3]
[392206287,1761253832459,-6173.59623697,0.00022,7]
[392206288,1761253832470,-847.999995,0.00022,7]
[392206289,1761253832482,-841.81967037,0.00022,7]